[Event "*** Titled Tuesday Blitz"]
[Site "Chess.com"]
[Date "2020.11.03"]
[Round "2"]
[White "mc4chess"]
[Black "anon102030"]
[Result "1-0"]
[WhiteElo "2409"]
[BlackElo "2666"]
[TimeControl "180+1"]
[EndTime "10:19:17 PST"]
[Termination "mc4chess won on time"]

1. e4 {[%clk 0:02:58.9]} 1... e5 {[%clk 0:02:54.5]} 2. Nf3 {[%clk 0:02:58.8]}
2... Nc6 {[%clk 0:02:51.9]} 3. Bb5 {[%clk 0:02:57.6]} 3... Nge7 {[%clk
0:02:51.1]} 4. O-O {[%clk 0:02:56.4]} 4... d6 {[%clk 0:02:51.7]} 5. c3 {[%clk
0:02:55.6]} 5... Bd7 {[%clk 0:02:52.3]} 6. d4 {[%clk 0:02:54.8]} 6... Ng6 {[%clk
0:02:51]} 7. Re1 {[%clk 0:02:50.1]} 7... Be7 {[%clk 0:02:50.3]} 8. Nbd2 {[%clk
0:02:49.6]} 8... O-O {[%clk 0:02:50.9]} 9. Nf1 {[%clk 0:02:49.6]} 9... Nxd4
{[%clk 0:02:50.7]} 10. Nxd4 {[%clk 0:02:47]} 10... exd4 {[%clk 0:02:50.7]} 11.
Bxd7 {[%clk 0:02:47]} 11... Qxd7 {[%clk 0:02:51.4]} 12. cxd4 {[%clk 0:02:47.2]}
12... d5 {[%clk 0:02:52]} 13. e5 {[%clk 0:02:47]} 13... c5 {[%clk 0:02:52.6]}
14. Ne3 {[%clk 0:02:37.3]} 14... Rfd8 {[%clk 0:02:40.2]} 15. b3 {[%clk 0:02:19]}
15... cxd4 {[%clk 0:02:32.7]} 16. Nc2 {[%clk 0:02:17.2]} 16... Rac8 {[%clk
0:02:27.6]} 17. Nxd4 {[%clk 0:02:16.6]} 17... Qc7 {[%clk 0:02:16.3]} 18. Bb2
{[%clk 0:02:12.5]} 18... Bb4 {[%clk 0:01:51.6]} 19. Re2 {[%clk 0:02:09.6]} 19...
Nxe5 {[%clk 0:01:36.1]} 20. Nb5 {[%clk 0:01:52.4]} 20... Qb6 {[%clk 0:01:35.1]}
21. Rxe5 {[%clk 0:01:44.6]} 21... Qxb5 {[%clk 0:01:32.5]} 22. Qg4 {[%clk
0:01:41.6]} 22... Bc3 {[%clk 0:01:21.2]} 23. Rc1 {[%clk 0:01:33.7]} 23... Qb4
{[%clk 0:00:46.1]} 24. Qxb4 {[%clk 0:00:35.8]} 24... Bxb4 {[%clk 0:00:47]} 25.
Rxc8 {[%clk 0:00:32.9]} 25... Rxc8 {[%clk 0:00:47.9]} 26. Rxd5 {[%clk 0:00:33]}
26... f6 {[%clk 0:00:20.1]} 27. g3 {[%clk 0:00:25.7]} 27... Rc2 {[%clk
0:00:19.1]} 28. Bd4 {[%clk 0:00:25.8]} 28... a6 {[%clk 0:00:17.4]} 29. Rd8+
{[%clk 0:00:22.8]} 29... Kf7 {[%clk 0:00:16.3]} 30. Rd7+ {[%clk 0:00:23]} 30...
Kg6 {[%clk 0:00:16.3]} 31. Rxb7 {[%clk 0:00:22.5]} 31... a5 {[%clk 0:00:14]} 32.
a4 {[%clk 0:00:19.1]} 32... Rc1+ {[%clk 0:00:14]} 33. Kg2 {[%clk 0:00:18.7]}
33... Rb1 {[%clk 0:00:13.3]} 34. Bb6 {[%clk 0:00:14.8]} 34... Rxb3 {[%clk
0:00:13.1]} 35. Bxa5 {[%clk 0:00:14.5]} 35... Ra3 {[%clk 0:00:03]} 36. Rxb4
{[%clk 0:00:13.9]} 36... Ra2 {[%clk 0:00:03.9]} 37. h4 {[%clk 0:00:14]} 37...
Kf5 {[%clk 0:00:04.1]} 38. Bb6 {[%clk 0:00:13.9]} 38... g5 {[%clk 0:00:04.2]}
39. a5 {[%clk 0:00:14.4]} 39... h5 {[%clk 0:00:03.4]} 40. hxg5 {[%clk
0:00:14.6]} 40... fxg5 {[%clk 0:00:02.9]} 41. Be3 {[%clk 0:00:14.1]} 41... g4
{[%clk 0:00:02.5]} 42. Rb5+ {[%clk 0:00:13.7]} 42... Ke4 {[%clk 0:00:01.3]} 43.
Rxh5 {[%clk 0:00:12.7]} 1-0

[Event "*** Titled Tuesday Blitz"]
[Site "Chess.com"]
[Date "2020.11.03"]
[Round "2"]
[White "GjakanTati"]
[Black "esrosenberg"]
[Result "1-0"]
[WhiteElo "2613"]
[BlackElo "2328"]
[TimeControl "180+1"]
[EndTime "10:19:19 PST"]
[Termination "GjakanTati won by resignation"]

1. e4 {[%clk 0:03:00.9]} 1... c6 {[%clk 0:03:00.2]} 2. d4 {[%clk 0:03:00]} 2...
d5 {[%clk 0:03:00.8]} 3. Nc3 {[%clk 0:02:55.7]} 3... dxe4 {[%clk 0:03:01.1]} 4.
Nxe4 {[%clk 0:02:56.4]} 4... Bf5 {[%clk 0:03:01.7]} 5. Ng3 {[%clk 0:02:56.9]}
5... Bg6 {[%clk 0:03:02.3]} 6. Nf3 {[%clk 0:02:57.6]} 6... Nd7 {[%clk
0:03:02.2]} 7. h4 {[%clk 0:02:46.5]} 7... h6 {[%clk 0:03:02.3]} 8. h5 {[%clk
0:02:45.7]} 8... Bh7 {[%clk 0:03:02.7]} 9. Bd3 {[%clk 0:02:46.2]} 9... Bxd3
{[%clk 0:03:02.9]} 10. Qxd3 {[%clk 0:02:47.1]} 10... e6 {[%clk 0:03:03.6]} 11.
O-O {[%clk 0:02:46.3]} 11... Ngf6 {[%clk 0:03:03.3]} 12. Bf4 {[%clk 0:02:43.3]}
12... Be7 {[%clk 0:03:02.3]} 13. c4 {[%clk 0:02:41.3]} 13... O-O {[%clk
0:03:01.8]} 14. a3 {[%clk 0:02:36.3]} 14... Re8 {[%clk 0:02:41.6]} 15. Rfd1
{[%clk 0:02:35.2]} 15... a5 {[%clk 0:02:36.3]} 16. Rab1 {[%clk 0:02:31.6]} 16...
a4 {[%clk 0:02:36.5]} 17. b4 {[%clk 0:02:25.6]} 17... axb3 {[%clk 0:02:36.1]}
18. Rxb3 {[%clk 0:02:25.5]} 18... b5 {[%clk 0:02:28.9]} 19. cxb5 {[%clk
0:02:23.2]} 19... cxb5 {[%clk 0:02:29.4]} 20. Qxb5 {[%clk 0:02:14.3]} 20... Ra5
{[%clk 0:02:15.3]} 21. Qd3 {[%clk 0:02:11.2]} 21... Nxh5 {[%clk 0:02:11.1]} 22.
Nxh5 {[%clk 0:02:01.5]} 22... Rxh5 {[%clk 0:02:10.7]} 23. Ne5 {[%clk 0:01:59.9]}
23... Nxe5 {[%clk 0:02:03]} 24. dxe5 {[%clk 0:01:56.8]} 24... Qa8 {[%clk
0:01:38.9]} 25. Qf3 {[%clk 0:01:43.2]} 25... Qxf3 {[%clk 0:01:21.4]} 26. Rxf3
{[%clk 0:01:44.1]} 26... Ra8 {[%clk 0:01:17.6]} 27. Rdd3 {[%clk 0:01:30.6]}
27... Ra4 {[%clk 0:01:11.5]} 28. g3 {[%clk 0:01:23]} 28... g5 {[%clk 0:01:04.7]}
29. Bc1 {[%clk 0:01:20.7]} 29... g4 {[%clk 0:01:05]} 30. Rf4 {[%clk 0:01:19.3]}
30... Rxf4 {[%clk 0:00:55.9]} 31. Bxf4 {[%clk 0:01:20.2]} 31... Rf5 {[%clk
0:00:47.5]} 32. a4 {[%clk 0:01:11.9]} 32... f6 {[%clk 0:00:46]} 33. Rd7 {[%clk
0:01:05.1]} 33... fxe5 {[%clk 0:00:38.6]} 34. Be3 {[%clk 0:00:59.7]} 34... Bg5
{[%clk 0:00:30.6]} 35. Bb6 {[%clk 0:00:56.9]} 35... e4 {[%clk 0:00:30.2]} 36. a5
{[%clk 0:00:56.6]} 36... e3 {[%clk 0:00:27]} 37. fxe3 {[%clk 0:00:55.6]} 37...
Rf3 {[%clk 0:00:24.4]} 38. a6 {[%clk 0:00:55]} 38... Rxg3+ {[%clk 0:00:18.8]}
39. Kh2 {[%clk 0:00:55]} 39... Rh3+ {[%clk 0:00:18.7]} 40. Kg2 {[%clk
0:00:55.3]} 40... Bxe3 {[%clk 0:00:15.6]} 41. Bxe3 {[%clk 0:00:49.3]} 41... Rxe3
{[%clk 0:00:16.5]} 42. a7 {[%clk 0:00:49]} 42... Ra3 {[%clk 0:00:17.2]} 43. Rd8+
{[%clk 0:00:49]} 43... Kf7 {[%clk 0:00:17.3]} 44. a8=Q {[%clk 0:00:48.7]} 44...
Rxa8 {[%clk 0:00:17.9]} 45. Rxa8 {[%clk 0:00:49.1]} 45... h5 {[%clk 0:00:18.7]}
46. Kg3 {[%clk 0:00:47.9]} 46... Kf6 {[%clk 0:00:17.9]} 47. Kh4 {[%clk
0:00:46.5]} 47... Kf5 {[%clk 0:00:17.3]} 48. Kxh5 {[%clk 0:00:40.9]} 48... g3
{[%clk 0:00:15.4]} 49. Kh4 {[%clk 0:00:37.4]} 49... Kf4 {[%clk 0:00:13.4]} 50.
Rf8+ {[%clk 0:00:36.5]} 50... Ke3 {[%clk 0:00:12.1]} 51. Kxg3 {[%clk 0:00:36.9]}
51... e5 {[%clk 0:00:13]} 52. Re8 {[%clk 0:00:36.4]} 52... e4 {[%clk 0:00:13.3]}
53. Kg2 {[%clk 0:00:37]} 53... Kd3 {[%clk 0:00:12.8]} 54. Kf1 {[%clk 0:00:37.2]}
54... e3 {[%clk 0:00:11.5]} 55. Ke1 {[%clk 0:00:37.8]} 1-0

[Event "*** Titled Tuesday Blitz"]
[Site "Chess.com"]
[Date "2020.11.03"]
[Round "2"]
[White "Nara_Kh"]
[Black "IwkooO"]
[Result "0-1"]
[WhiteElo "2335"]
[BlackElo "2651"]
[TimeControl "180+1"]
[EndTime "10:19:21 PST"]
[Termination "IwkooO won by checkmate"]

1. e4 {[%clk 0:03:00.9]} 1... c5 {[%clk 0:03:00.1]} 2. Nf3 {[%clk 0:02:59.7]}
2... e6 {[%clk 0:03:00.3]} 3. d4 {[%clk 0:02:59.7]} 3... cxd4 {[%clk 0:03:01.2]}
4. Nxd4 {[%clk 0:03:00.5]} 4... Nc6 {[%clk 0:03:01.5]} 5. Nc3 {[%clk 0:03:00]}
5... a6 {[%clk 0:03:01.3]} 6. Be3 {[%clk 0:02:59.6]} 6... Nf6 {[%clk 0:03:01.1]}
7. Qf3 {[%clk 0:02:28.4]} 7... Bb4 {[%clk 0:02:53.7]} 8. Nxc6 {[%clk 0:02:23.8]}
8... bxc6 {[%clk 0:02:53.3]} 9. e5 {[%clk 0:02:24.2]} 9... Nd5 {[%clk 0:02:52]}
10. Bd2 {[%clk 0:02:22.8]} 10... Qc7 {[%clk 0:02:34.8]} 11. Qg3 {[%clk
0:02:17.6]} 11... g6 {[%clk 0:02:35]} 12. Be2 {[%clk 0:02:08.6]} 12... h5 {[%clk
0:02:34.7]} 13. h4 {[%clk 0:02:04.5]} 13... Nxc3 {[%clk 0:02:24.7]} 14. bxc3
{[%clk 0:02:02.3]} 14... Be7 {[%clk 0:02:24.6]} 15. O-O {[%clk 0:01:58.8]} 15...
a5 {[%clk 0:02:10.3]} 16. Rfe1 {[%clk 0:01:47]} 16... Ba6 {[%clk 0:02:06.6]} 17.
c4 {[%clk 0:01:46.7]} 17... Qd8 {[%clk 0:01:56.4]} 18. Bg5 {[%clk 0:01:42.7]}
18... Bxg5 {[%clk 0:01:56.2]} 19. hxg5 {[%clk 0:01:42.7]} 19... O-O {[%clk
0:01:50.9]} 20. Rad1 {[%clk 0:01:37]} 20... Rb8 {[%clk 0:01:48.2]} 21. Rd4
{[%clk 0:01:30.4]} 21... Rb2 {[%clk 0:01:35.6]} 22. Red1 {[%clk 0:01:11.5]}
22... Rxc2 {[%clk 0:01:31]} 23. Rxd7 {[%clk 0:01:11.1]} 23... Qb6 {[%clk
0:01:29.3]} 24. Bxh5 {[%clk 0:01:01.8]} 24... Bxc4 {[%clk 0:01:13]} 25. R1d4
{[%clk 0:00:53.9]} 25... Rc1+ {[%clk 0:01:05.5]} 26. Kh2 {[%clk 0:00:52.4]}
26... Qb1 {[%clk 0:01:03.3]} 27. Rd1 {[%clk 0:00:30.9]} 27... gxh5 {[%clk
0:00:47.3]} 28. Rxc1 {[%clk 0:00:28.7]} 28... Qxc1 {[%clk 0:00:47]} 29. g6
{[%clk 0:00:29.1]} 29... Qh6 {[%clk 0:00:42.8]} 30. gxf7+ {[%clk 0:00:21.5]}
30... Kh8 {[%clk 0:00:43]} 31. Qh4 {[%clk 0:00:19.3]} 31... Bd5 {[%clk
0:00:42.1]} 32. Rd8 {[%clk 0:00:16.7]} 32... Kg7 {[%clk 0:00:36.1]} 33. Rxf8
{[%clk 0:00:03.1]} 33... Kxf8 {[%clk 0:00:35.9]} 34. Qd8+ {[%clk 0:00:02.4]}
34... Kxf7 {[%clk 0:00:36.4]} 35. Qxa5 {[%clk 0:00:02.2]} 35... Qf4+ {[%clk
0:00:36]} 36. Kg1 {[%clk 0:00:02.4]} 36... Qxe5 {[%clk 0:00:36]} 37. Qa7+ {[%clk
0:00:02.5]} 37... Kg6 {[%clk 0:00:36.1]} 38. a4 {[%clk 0:00:03.1]} 38... Qe1+
{[%clk 0:00:35.8]} 39. Kh2 {[%clk 0:00:03.2]} 39... Qe4 {[%clk 0:00:35]} 40. Kg3
{[%clk 0:00:01.4]} 40... Qxg2+ {[%clk 0:00:34.9]} 41. Kf4 {[%clk 0:00:02]} 41...
Qf3+ {[%clk 0:00:35.5]} 42. Ke5 {[%clk 0:00:02.2]} 42... h4 {[%clk 0:00:34.8]}
43. a5 {[%clk 0:00:01.8]} 43... h3 {[%clk 0:00:34.7]} 44. a6 {[%clk 0:00:02.2]}
44... h2 {[%clk 0:00:34.2]} 45. Qb6 {[%clk 0:00:02.2]} 45... h1=Q {[%clk
0:00:31.9]} 46. a7 {[%clk 0:00:03.1]} 46... Qh2+ {[%clk 0:00:31.7]} 47. Kd4
{[%clk 0:00:02.5]} 47... Qhxf2+ {[%clk 0:00:31.6]} 48. Ke5 {[%clk 0:00:02.5]}
48... Qf4# {[%clk 0:00:31.2]} 0-1

[Event "*** Titled Tuesday Blitz"]
[Site "Chess.com"]
[Date "2020.11.03"]
[Round "2"]
[White "Shota_Azaladze"]
[Black "Bigfish1995"]
[Result "0-1"]
[WhiteElo "2622"]
[BlackElo "3007"]
[TimeControl "180+1"]
[EndTime "10:19:23 PST"]
[Termination "Bigfish1995 won by resignation"]

1. Nf3 {[%clk 0:03:00.9]} 1... c5 {[%clk 0:02:30.6]} 2. g3 {[%clk 0:02:59.7]}
2... Nc6 {[%clk 0:02:29.9]} 3. Bg2 {[%clk 0:03:00.2]} 3... e5 {[%clk 0:02:30.1]}
4. c4 {[%clk 0:02:59.6]} 4... e4 {[%clk 0:02:27.8]} 5. Ng1 {[%clk 0:02:58.8]}
5... f5 {[%clk 0:02:27.8]} 6. d3 {[%clk 0:02:59]} 6... exd3 {[%clk 0:02:04.7]}
7. Qxd3 {[%clk 0:02:57.9]} 7... Nf6 {[%clk 0:02:05.1]} 8. Nc3 {[%clk 0:02:57.2]}
8... Ne5 {[%clk 0:01:58.5]} 9. Qxf5 {[%clk 0:02:47.2]} 9... Nxc4 {[%clk
0:01:48.3]} 10. Qd3 {[%clk 0:02:22.8]} 10... Ne5 {[%clk 0:01:36.7]} 11. Qd1
{[%clk 0:02:14.1]} 11... Be7 {[%clk 0:01:21.1]} 12. Nf3 {[%clk 0:02:03.2]} 12...
Nf7 {[%clk 0:01:21.1]} 13. O-O {[%clk 0:01:59.1]} 13... d5 {[%clk 0:01:20.9]}
14. Ng5 {[%clk 0:01:52.6]} 14... d4 {[%clk 0:01:16.6]} 15. Nce4 {[%clk
0:01:41.6]} 15... Nxg5 {[%clk 0:01:07.6]} 16. Nxg5 {[%clk 0:01:38]} 16... h6
{[%clk 0:01:06.7]} 17. Nf3 {[%clk 0:01:35.7]} 17... Be6 {[%clk 0:01:04.1]} 18.
e3 {[%clk 0:01:29.3]} 18... O-O {[%clk 0:00:29.9]} 19. exd4 {[%clk 0:01:28.2]}
19... Bd5 {[%clk 0:00:30.3]} 20. Be3 {[%clk 0:01:18.6]} 20... c4 {[%clk
0:00:29]} 21. Nd2 {[%clk 0:01:01.7]} 21... b5 {[%clk 0:00:28.5]} 22. a4 {[%clk
0:00:56.3]} 22... a6 {[%clk 0:00:26.2]} 23. Bxd5+ {[%clk 0:00:45.5]} 23... Qxd5
{[%clk 0:00:24.7]} 24. Qf3 {[%clk 0:00:43.8]} 24... Bb4 {[%clk 0:00:21.8]} 25.
axb5 {[%clk 0:00:35.3]} 25... axb5 {[%clk 0:00:17.5]} 26. Qxd5+ {[%clk 0:00:25]}
26... Nxd5 {[%clk 0:00:17.6]} 27. Ne4 {[%clk 0:00:25.7]} 27... Rxa1 {[%clk
0:00:17.8]} 28. Rxa1 {[%clk 0:00:24.7]} 28... Re8 {[%clk 0:00:18.4]} 29. Nc5
{[%clk 0:00:17.6]} 29... Nxe3 {[%clk 0:00:18.4]} 30. fxe3 {[%clk 0:00:18.5]}
30... Rxe3 {[%clk 0:00:18.7]} 31. Ra8+ {[%clk 0:00:18.7]} 31... Kh7 {[%clk
0:00:18.3]} 32. Rb8 {[%clk 0:00:19.4]} 32... Re1+ {[%clk 0:00:09.2]} 33. Kf2
{[%clk 0:00:19.2]} 33... Rb1 {[%clk 0:00:09.4]} 34. Rxb5 {[%clk 0:00:19.8]}
34... Rxb2+ {[%clk 0:00:09.7]} 35. Kf3 {[%clk 0:00:20.4]} 35... c3 {[%clk
0:00:09.8]} 36. Nd3 {[%clk 0:00:20.5]} 36... c2 {[%clk 0:00:10.3]} 37. Ke4
{[%clk 0:00:18.1]} 37... Rb3 {[%clk 0:00:05.7]} 38. Nc1 {[%clk 0:00:14.2]} 38...
Rb1 {[%clk 0:00:06]} 39. Nd3 {[%clk 0:00:14.3]} 39... Ba3 {[%clk 0:00:05.9]} 40.
Ra5 {[%clk 0:00:12.5]} 40... Rb3 {[%clk 0:00:05.7]} 41. Ra4 {[%clk 0:00:08.6]}
41... Rxd3 {[%clk 0:00:05.7]} 42. Rc4 {[%clk 0:00:09.2]} 42... Rd2 {[%clk
0:00:05.2]} 43. d5 {[%clk 0:00:08.4]} 43... c1=Q {[%clk 0:00:05.5]} 0-1

[Event "*** Titled Tuesday Blitz"]
[Site "Chess.com"]
[Date "2020.11.03"]
[Round "2"]
[White "Chamal_Gedgafov"]
[Black "mjray79"]
[Result "0-1"]
[WhiteElo "2136"]
[BlackElo "2476"]
[TimeControl "180+1"]
[EndTime "10:19:24 PST"]
[Termination "mjray79 won on time"]

1. d4 {[%clk 0:03:00.9]} 1... Nf6 {[%clk 0:02:59.6]} 2. c4 {[%clk 0:03:00.8]}
2... g6 {[%clk 0:02:59.9]} 3. Nc3 {[%clk 0:03:00.2]} 3... Bg7 {[%clk 0:03:00.1]}
4. e4 {[%clk 0:03:00]} 4... d6 {[%clk 0:03:00.6]} 5. Nf3 {[%clk 0:03:00.5]} 5...
O-O {[%clk 0:03:00.8]} 6. Be2 {[%clk 0:03:00.9]} 6... e5 {[%clk 0:03:01.2]} 7.
d5 {[%clk 0:03:01.2]} 7... a5 {[%clk 0:02:59.7]} 8. Be3 {[%clk 0:03:01.7]} 8...
Na6 {[%clk 0:02:58.8]} 9. Nd2 {[%clk 0:03:01.6]} 9... Bd7 {[%clk 0:02:59]} 10.
O-O {[%clk 0:03:00.8]} 10... h6 {[%clk 0:02:48.8]} 11. a3 {[%clk 0:02:55.4]}
11... Nh7 {[%clk 0:02:47.9]} 12. Rb1 {[%clk 0:02:53.7]} 12... f5 {[%clk
0:02:48]} 13. f3 {[%clk 0:02:54]} 13... f4 {[%clk 0:02:47.8]} 14. Bf2 {[%clk
0:02:54.2]} 14... g5 {[%clk 0:02:48.4]} 15. b4 {[%clk 0:02:54.4]} 15... axb4
{[%clk 0:02:48.3]} 16. axb4 {[%clk 0:02:53.9]} 16... h5 {[%clk 0:02:48.3]} 17.
c5 {[%clk 0:02:52.6]} 17... Nf6 {[%clk 0:02:47]} 18. c6 {[%clk 0:02:46.9]} 18...
bxc6 {[%clk 0:02:44.2]} 19. dxc6 {[%clk 0:02:45.1]} 19... Be6 {[%clk 0:02:44.3]}
20. Bc4 {[%clk 0:02:25.5]} 20... Bxc4 {[%clk 0:02:37.1]} 21. Nxc4 {[%clk
0:02:26.4]} 21... g4 {[%clk 0:02:37.4]} 22. Bh4 {[%clk 0:01:52.6]} 22... Qe8
{[%clk 0:02:28.5]} 23. Nd5 {[%clk 0:01:45.6]} 23... g3 {[%clk 0:02:14.5]} 24. b5
{[%clk 0:01:31.3]} 24... Nc5 {[%clk 0:01:38.8]} 25. Nxc7 {[%clk 0:01:31]} 25...
Qf7 {[%clk 0:01:39.3]} 26. Nxa8 {[%clk 0:01:29.7]} 26... Qxc4 {[%clk 0:01:38.4]}
27. Nb6 {[%clk 0:01:18.3]} 27... Qc3 {[%clk 0:01:37.6]} 28. Nd5 {[%clk
0:01:11.1]} 28... Nxd5 {[%clk 0:01:36.8]} 29. Qxd5+ {[%clk 0:01:09.8]} 29... Kh7
{[%clk 0:01:34.9]} 30. hxg3 {[%clk 0:01:03.5]} 30... Qe3+ {[%clk 0:01:29.7]} 31.
Kh1 {[%clk 0:00:59.2]} 31... Nd3 {[%clk 0:01:29.2]} 32. c7 {[%clk 0:00:40.9]}
32... fxg3 {[%clk 0:01:24.2]} 33. Bxg3 {[%clk 0:00:33]} 33... h4 {[%clk
0:01:23.3]} 34. Bxh4 {[%clk 0:00:20]} 34... Nf4 {[%clk 0:01:22.2]} 35. Qxd6
{[%clk 0:00:15.7]} 35... Ng6 {[%clk 0:01:12]} 36. Bg3 {[%clk 0:00:14.3]} 36...
Rf6 {[%clk 0:01:07.5]} 37. Qd7 {[%clk 0:00:13.3]} 37... Nf4 {[%clk 0:00:47.2]}
38. c8=Q {[%clk 0:00:10.6]} 38... Rh6+ {[%clk 0:00:36.2]} 39. Bh2 {[%clk
0:00:10.5]} 39... Qe2 {[%clk 0:00:32.1]} 40. Qf5+ {[%clk 0:00:09.4]} 40... Rg6
{[%clk 0:00:31.8]} 41. Qh3+ {[%clk 0:00:08.8]} 41... Rh6 {[%clk 0:00:27]} 42.
Qxh6+ {[%clk 0:00:05.5]} 42... Bxh6 {[%clk 0:00:25.4]} 43. Qf5+ {[%clk
0:00:05.6]} 43... Ng6 {[%clk 0:00:24.8]} 44. Rbc1 {[%clk 0:00:02.4]} 44... Bxc1
{[%clk 0:00:22.6]} 45. Rxc1 {[%clk 0:00:01.6]} 45... Kh6 {[%clk 0:00:21.6]} 0-1

[Event "*** Titled Tuesday Blitz"]
[Site "Chess.com"]
[Date "2020.11.03"]
[Round "2"]
[White "Kaua18"]
[Black "andriipalchuk"]
[Result "1-0"]
[WhiteElo "2300"]
[BlackElo "2443"]
[TimeControl "180+1"]
[EndTime "10:19:24 PST"]
[Termination "Kaua18 won by resignation"]

1. e4 {[%clk 0:02:59.8]} 1... e5 {[%clk 0:03:00.5]} 2. Nf3 {[%clk 0:02:58.6]}
2... Nc6 {[%clk 0:03:01.1]} 3. Bb5 {[%clk 0:02:58.8]} 3... a6 {[%clk 0:02:59.8]}
4. Ba4 {[%clk 0:02:59]} 4... Nf6 {[%clk 0:03:00.2]} 5. O-O {[%clk 0:02:58.4]}
5... Nxe4 {[%clk 0:03:00.3]} 6. d4 {[%clk 0:02:57.1]} 6... b5 {[%clk 0:03:00.1]}
7. Bb3 {[%clk 0:02:54.4]} 7... d5 {[%clk 0:03:00.7]} 8. dxe5 {[%clk 0:02:53.9]}
8... Be6 {[%clk 0:02:59.6]} 9. c3 {[%clk 0:02:54.1]} 9... Bc5 {[%clk 0:02:57.9]}
10. Nbd2 {[%clk 0:02:47.9]} 10... O-O {[%clk 0:02:56.8]} 11. Bc2 {[%clk
0:02:47.2]} 11... Nxf2 {[%clk 0:02:56]} 12. Rxf2 {[%clk 0:02:46.9]} 12... Bxf2+
{[%clk 0:02:56.9]} 13. Kxf2 {[%clk 0:02:47.8]} 13... f6 {[%clk 0:02:55.4]} 14.
exf6 {[%clk 0:02:41.1]} 14... Qxf6 {[%clk 0:02:55]} 15. Kg1 {[%clk 0:02:40.6]}
15... Bg4 {[%clk 0:02:50.6]} 16. h3 {[%clk 0:02:40.3]} 16... Bh5 {[%clk
0:02:49.4]} 17. a4 {[%clk 0:02:34.7]} 17... Rae8 {[%clk 0:02:45.7]} 18. axb5
{[%clk 0:02:21.4]} 18... axb5 {[%clk 0:02:44.2]} 19. Ra6 {[%clk 0:02:21.8]}
19... Re6 {[%clk 0:02:43.5]} 20. Bb3 {[%clk 0:02:20.2]} 20... Qf5 {[%clk
0:01:49.9]} 21. Qc2 {[%clk 0:01:46.7]} 21... Qxc2 {[%clk 0:01:30.4]} 22. Bxc2
{[%clk 0:01:47.5]} 22... Bxf3 {[%clk 0:01:30.4]} 23. Nxf3 {[%clk 0:01:44.8]}
23... Rxf3 {[%clk 0:01:31]} 24. gxf3 {[%clk 0:01:45.7]} 24... Re1+ {[%clk
0:01:31.6]} 25. Kf2 {[%clk 0:01:34]} 25... Rxc1 {[%clk 0:01:31.8]} 26. Bf5
{[%clk 0:01:12.4]} 26... Ne5 {[%clk 0:01:24.7]} 27. Be6+ {[%clk 0:01:09.3]}
27... Kf8 {[%clk 0:01:23.8]} 28. Bxd5 {[%clk 0:01:09.4]} 28... Nd3+ {[%clk
0:01:03.4]} 29. Ke3 {[%clk 0:01:08.8]} 29... Nxb2 {[%clk 0:01:03.7]} 30. Rc6
{[%clk 0:00:43.9]} 30... Nc4+ {[%clk 0:00:53.8]} 31. Kd4 {[%clk 0:00:34.3]}
31... Rd1+ {[%clk 0:00:52.9]} 32. Kc5 {[%clk 0:00:32.9]} 32... Nb6 {[%clk
0:00:25.1]} 33. Be4 {[%clk 0:00:23.2]} 33... Nd7+ {[%clk 0:00:20.6]} 34. Kxb5
{[%clk 0:00:21.7]} 34... Rb1+ {[%clk 0:00:21.3]} 35. Ka4 {[%clk 0:00:16.4]}
35... Rb7 {[%clk 0:00:20.8]} 36. Bxh7 {[%clk 0:00:11.2]} 36... Ke7 {[%clk
0:00:17.1]} 37. Be4 {[%clk 0:00:11.3]} 37... Kd8 {[%clk 0:00:12.2]} 38. Rg6
{[%clk 0:00:11.6]} 38... Ra7+ {[%clk 0:00:11.8]} 39. Kb3 {[%clk 0:00:12]} 39...
Ra5 {[%clk 0:00:05.1]} 40. Rxg7 {[%clk 0:00:11.6]} 40... Rh5 {[%clk 0:00:05.8]}
41. Kc2 {[%clk 0:00:09.6]} 41... Rxh3 {[%clk 0:00:05.1]} 42. Rxd7+ {[%clk
0:00:09.8]} 1-0

[Event "*** Titled Tuesday Blitz"]
[Site "Chess.com"]
[Date "2020.11.03"]
[Round "2"]
[White "Eloist"]
[Black "Piotrek1979"]
[Result "0-1"]
[WhiteElo "2221"]
[BlackElo "2431"]
[TimeControl "180+1"]
[EndTime "10:19:25 PST"]
[Termination "Piotrek1979 won by resignation"]

1. e4 {[%clk 0:03:00.9]} 1... c5 {[%clk 0:02:58.1]} 2. Nf3 {[%clk 0:03:00.4]}
2... Nc6 {[%clk 0:02:58.4]} 3. Bb5 {[%clk 0:02:59.6]} 3... g6 {[%clk 0:02:57.4]}
4. Bxc6 {[%clk 0:02:59.5]} 4... dxc6 {[%clk 0:02:57.8]} 5. d3 {[%clk 0:02:58.6]}
5... Bg7 {[%clk 0:02:49.7]} 6. O-O {[%clk 0:02:58.1]} 6... e5 {[%clk 0:02:48.4]}
7. a4 {[%clk 0:02:52.3]} 7... a5 {[%clk 0:02:42.8]} 8. Na3 {[%clk 0:02:49]} 8...
Ne7 {[%clk 0:02:31.4]} 9. Nc4 {[%clk 0:02:46.8]} 9... Qc7 {[%clk 0:02:30.7]} 10.
Be3 {[%clk 0:02:42.1]} 10... b6 {[%clk 0:02:28.9]} 11. b4 {[%clk 0:02:41.1]}
11... axb4 {[%clk 0:02:17.6]} 12. a5 {[%clk 0:02:40.4]} 12... bxa5 {[%clk
0:02:09.8]} 13. Bxc5 {[%clk 0:02:39.1]} 13... O-O {[%clk 0:02:08.8]} 14. Bxb4
{[%clk 0:02:17.3]} 14... a4 {[%clk 0:01:52.6]} 15. Bd6 {[%clk 0:02:14.7]} 15...
Qd8 {[%clk 0:01:52.1]} 16. Bxe5 {[%clk 0:02:07.3]} 16... f6 {[%clk 0:01:50.5]}
17. Bd6 {[%clk 0:01:58.8]} 17... Be6 {[%clk 0:01:50.1]} 18. Nfd2 {[%clk
0:01:52.2]} 18... Rf7 {[%clk 0:01:48.3]} 19. Qe2 {[%clk 0:01:32.9]} 19... Nc8
{[%clk 0:01:46]} 20. Bc5 {[%clk 0:01:30.4]} 20... Rb7 {[%clk 0:01:44.2]} 21. f4
{[%clk 0:01:15.3]} 21... Rb5 {[%clk 0:01:42.6]} 22. d4 {[%clk 0:01:04.1]} 22...
f5 {[%clk 0:01:20.1]} 23. e5 {[%clk 0:00:57.3]} 23... Ne7 {[%clk 0:01:19.2]} 24.
Nd6 {[%clk 0:00:56]} 24... Rb2 {[%clk 0:01:16.1]} 25. Qd3 {[%clk 0:00:35.1]}
25... Qb8 {[%clk 0:01:15.5]} 26. N6c4 {[%clk 0:00:27]} 26... Rb7 {[%clk
0:01:03.6]} 27. Nd6 {[%clk 0:00:19.7]} 27... Rb2 {[%clk 0:00:56.1]} 28. N2c4
{[%clk 0:00:19]} 28... Nd5 {[%clk 0:00:45.5]} 29. Nxb2 {[%clk 0:00:17.6]} 29...
Qxb2 {[%clk 0:00:46.4]} 30. c4 {[%clk 0:00:16.8]} 30... Nxf4 {[%clk 0:00:43.4]}
31. Rxf4 {[%clk 0:00:14.3]} 31... Qxa1+ {[%clk 0:00:42.8]} 32. Rf1 {[%clk
0:00:14.7]} 32... Qb2 {[%clk 0:00:43]} 33. d5 {[%clk 0:00:14.5]} 33... cxd5
{[%clk 0:00:40.1]} 34. cxd5 {[%clk 0:00:15.4]} 34... Qxe5 {[%clk 0:00:40.2]} 35.
dxe6 {[%clk 0:00:14.6]} 35... Qxc5+ {[%clk 0:00:40.1]} 36. Kh1 {[%clk
0:00:14.8]} 36... Bf6 {[%clk 0:00:33.4]} 37. Re1 {[%clk 0:00:13.6]} 37... a3
{[%clk 0:00:28.2]} 38. h3 {[%clk 0:00:12.9]} 38... a2 {[%clk 0:00:27.8]} 39. e7
{[%clk 0:00:11.2]} 39... a1=Q {[%clk 0:00:25.9]} 40. Qb3+ {[%clk 0:00:07.8]}
40... Kg7 {[%clk 0:00:22.6]} 41. Qf7+ {[%clk 0:00:07.2]} 41... Kh6 {[%clk
0:00:22.7]} 42. e8=Q {[%clk 0:00:07.1]} 42... Rxe8 {[%clk 0:00:17.5]} 43. Qxe8
{[%clk 0:00:07.1]} 43... Qxe1+ {[%clk 0:00:16.1]} 44. Qxe1 {[%clk 0:00:06.1]}
44... Qxd6 {[%clk 0:00:17]} 45. Qf1 {[%clk 0:00:05.6]} 45... Bg5 {[%clk
0:00:17.1]} 0-1